fUST/lending_fUST_20250716
["ID","MTS","AMOUNT","RATE_DAILY","PERIOD"]
[372471767,1752658244343,-1313.13,0.00019726,2]
[372471769,1752658244353,-487.35,0.00019726,2]
[372471771,1752658244363,-460.0,0.00019726,2]
[372471773,1752658244373,-460.0,0.00019726,2]
[372471775,1752658244384,-460.0,0.00019726,2]
[372471777,1752658244393,-460.0,0.00019726,2]
[372471779,1752658244403,-460.0,0.00019726,2]
[372471781,1752658244413,-460.0,0.00019726,2]
[372471783,1752658244423,-1503.77,0.00019726,2]
[372471785,1752658244433,-460.0,0.00019726,2]
[372471787,1752658244443,-460.0,0.00019726,2]
[372471789,1752658244452,-488.85530681,0.00019726,2]
[372471791,1752658244462,-1556.28,0.00019726,2]
[372471793,1752658244471,-460.0,0.00019726,2]
[372471795,1752658244480,-460.0,0.00019726,2]
[372471797,1752658244490,-230.72,0.00019726,2]
[372471799,1752658244500,-460.0,0.00019726,2]
[372471801,1752658244509,-460.0,0.00019726,2]
[372471803,1752658244519,-482.54,0.00019726,2]
[372471805,1752658244528,-460.0,0.00019726,2]
[372471807,1752658244538,-742.75,0.00019726,2]
[372471809,1752658244547,-2222.07,0.00019726,2]
[372471811,1752658244557,-460.0,0.00019726,2]
[372471812,1752658244567,-460.0,0.00019726,2]
[372471814,1752658244576,-460.0,0.00019726,2]
[372471816,1752658244586,-460.0,0.00019726,2]
[372471818,1752658244596,-460.0,0.00019726,2]
[372471820,1752658244605,-460.0,0.00019726,2]
[372471822,1752658244615,-460.0,0.00019726,2]
[372471824,1752658244624,-460.0,0.00019726,2]
[372471826,1752658244634,-153.72017957,0.00019738,2]
[372471828,1752658244643,-500.0,0.00019738,2]
[372471830,1752658244653,-371.53355101,0.00019821,2]
[372471832,1752658244662,-500.85482562,0.00019853,2]
[372471834,1752658244671,-300.31602514,0.00019853,2]
[372471836,1752658244681,-500.0,0.00019853,2]
[372471838,1752658244691,-500.0,0.00019853,2]
[372471840,1752658244700,-520.21646966,0.00019853,2]
[372471842,1752658244709,-151.0,0.000199,2]
[372471844,1752658244721,-1240.14837886,0.000199,2]
[372471846,1752658244730,-318.00226036,0.00019971,2]
[372471848,1752658244740,-500.96833344,0.00019973,2]
[372471850,1752658244750,-151.0,0.0002,3]
[372471852,1752658244759,-184.69847669,0.0002,2]
[372471854,1752658244770,-460.0,0.0002,2]
[372471856,1752658244780,-460.0,0.0002,2]
[372471858,1752658244790,-467.49544061,0.0002,2]
[372471860,1752658244802,-460.0,0.0002,2]
[372471862,1752658244813,-460.0,0.0002,2]
[372471865,1752658244822,-532.71651424,0.0002,2]
[372471866,1752658244832,-460.0,0.0002,2]
[372471868,1752658244842,-460.0,0.0002,2]
[372471870,1752658244851,-460.0,0.0002,2]
[372471873,1752658244861,-460.0,0.0002,2]
[372471874,1752658244872,-470.71915391,0.0002,2]
[372471877,1752658244882,-460.0,0.0002,2]
[372471878,1752658244892,-1307.03,0.0002,2]
[372471880,1752658244901,-460.0,0.0002,2]
[372471882,1752658244911,-460.0,0.0002,2]
[372471884,1752658244920,-460.0,0.0002,2]
[372471886,1752658244929,-460.0,0.0002,2]
[372471888,1752658244939,-460.0,0.0002,2]
[372471890,1752658244949,-460.0,0.0002,2]
[372471892,1752658244958,-460.0,0.0002,2]
[372471894,1752658244968,-460.0,0.0002,2]
[372471896,1752658244978,-451.90628207,0.0002,2]
[372471898,1752658244988,-460.0,0.0002,2]
[372471900,1752658244998,-460.0,0.0002,2]
[372471902,1752658245007,-460.0,0.0002,2]
[372471904,1752658245017,-746.31,0.0002,2]
[372471906,1752658245027,-1872.38,0.0002,2]
[372471908,1752658245036,-831.68,0.0002,2]
[372471909,1752658245045,-460.0,0.0002,2]
[372471911,1752658245055,-1118.23,0.0002,2]
[372471913,1752658245064,-460.0,0.0002,2]
[372471915,1752658245075,-460.0,0.0002,2]
[372471917,1752658245084,-460.0,0.0002,2]
[372471919,1752658245093,-460.0,0.0002,2]
[372471921,1752658245103,-460.0,0.0002,2]
[372471923,1752658245113,-469.33,0.0002,2]
[372471925,1752658245124,-460.0,0.0002,2]
[372471927,1752658245134,-460.0,0.0002,2]
[372471929,1752658245143,-3790.78,0.0002,2]
[372471931,1752658245154,-1773.18,0.0002,2]
[372471933,1752658245164,-460.0,0.0002,2]
[372471935,1752658245173,-460.0,0.0002,2]
[372471937,1752658245183,-460.0,0.0002,2]
[372471939,1752658245192,-881.94,0.0002,2]
[372471941,1752658245202,-460.0,0.0002,2]
[372471943,1752658245212,-460.0,0.0002,2]
[372471945,1752658245223,-460.0,0.0002,2]
[372471947,1752658245232,-153.40435485,0.0002,2]
[372471949,1752658245242,-460.0,0.0002,2]
[372471951,1752658245252,-2784.38,0.0002,2]
[372471953,1752658245261,-1682.41,0.0002,2]
[372471955,1752658245272,-460.0,0.0002,2]
[372471957,1752658245282,-1293.99017771,0.0002,5]
[372471960,1752658245296,-1313.13,0.0002,2]
[372471961,1752658245306,-487.35,0.0002,2]
[372471963,1752658245316,-460.0,0.0002,2]
[372471965,1752658245326,-460.0,0.0002,2]
[372471967,1752658245336,-460.0,0.0002,2]
[372471969,1752658245346,-460.0,0.0002,2]
[372471971,1752658245356,-460.0,0.0002,2]
[372471973,1752658245365,-460.0,0.0002,2]
[372471975,1752658245375,-1503.77,0.0002,2]
[372471977,1752658245384,-300.67506845,0.0002,2]
[372471978,1752658245393,-460.0,0.0002,2]
[372471980,1752658245403,-460.0,0.0002,2]
[372471982,1752658245412,-1556.28,0.0002,2]
[372471984,1752658245422,-460.0,0.0002,2]
[372471986,1752658245431,-460.0,0.0002,2]
[372471988,1752658245441,-460.0,0.0002,2]
[372471990,1752658245451,-460.0,0.0002,2]
[372471992,1752658245461,-482.54,0.0002,2]
[372471994,1752658245471,-460.0,0.0002,2]
[372471996,1752658245483,-742.75,0.0002,2]
[372471998,1752658245493,-2222.07,0.0002,2]
[372472000,1752658245503,-460.0,0.0002,2]
[372472002,1752658245512,-460.0,0.0002,2]
[372472004,1752658245521,-460.0,0.0002,2]
[372472006,1752658245531,-460.0,0.0002,2]
[372472008,1752658245540,-152.29115071,0.0002,2]
[372472010,1752658245550,-460.0,0.0002,2]
[372472012,1752658245562,-460.0,0.0002,2]
[372472014,1752658245571,-460.0,0.0002,2]
[372472016,1752658245581,-1229.58696646,0.00020047,2]
[372472018,1752658245590,-151.0,0.000201,3]
[372472020,1752658245599,-1240.14837883,0.00020107,2]
[372472022,1752658245608,-503.14949113,0.00020139,2]
[372472024,1752658245617,-500.0,0.00020139,2]
[372472026,1752658245626,-500.0,0.00020139,2]
[372472028,1752658245636,-500.0,0.00020139,2]
[372472030,1752658245645,-508.27684544,0.00020139,2]
[372472031,1752658245655,-614.40379172,0.00020139,2]
[372472033,1752658245664,-500.38517312,0.00020139,2]
[372472036,1752658245674,-170.4186172,0.00020173,2]
[372472037,1752658245684,-179.87408814,0.00020184,2]
[372472039,1752658245693,-323.200639,0.00020187,2]
[372472042,1752658245703,-1500.0,0.00020268,2]
[372472045,1752658245712,-460.0,0.00020273,2]
[372472047,1752658245726,-460.0,0.00020273,2]
[372472049,1752658245735,-460.0,0.00020273,2]
[372472051,1752658245744,-460.0,0.00020273,2]
[372472053,1752658245753,-515.28,0.00020273,2]
[372472055,1752658245762,-460.0,0.00020273,2]
[372472057,1752658245772,-339.99,0.00020273,2]
[372472059,1752658245782,-460.0,0.00020273,2]
[372472061,1752658245792,-460.0,0.00020273,2]
[372472063,1752658245801,-1307.03,0.00020273,2]
[372472065,1752658245811,-460.0,0.00020273,2]
[372472066,1752658245820,-460.0,0.00020273,2]
[372472068,1752658245829,-460.0,0.00020273,2]
[372472070,1752658245839,-460.0,0.00020273,2]
[372472072,1752658245849,-460.0,0.00020273,2]
[372472074,1752658245858,-460.0,0.00020273,2]
[372472076,1752658245868,-460.0,0.00020273,2]
[372472078,1752658245878,-460.0,0.00020273,2]
[372472080,1752658245887,-460.0,0.00020273,2]
[372472082,1752658245897,-460.0,0.00020273,2]
[372472084,1752658245906,-746.31,0.00020273,2]
[372472086,1752658245916,-1872.38,0.00020273,2]
[372472088,1752658245925,-831.68,0.00020273,2]
[372472090,1752658245935,-558.52907695,0.00020273,2]
[372472092,1752658245944,-1118.23,0.00020273,2]
[372472094,1752658245954,-543.41239829,0.00020273,2]
[372472096,1752658245963,-460.0,0.00020273,2]
[372472098,1752658245972,-460.0,0.00020273,2]
[372472100,1752658245982,-460.0,0.00020273,2]
[372472102,1752658245991,-585.65,0.00020273,2]
[372472104,1752658246001,-460.0,0.00020273,2]
[372472105,1752658246011,-469.33,0.00020273,2]
[372472107,1752658246021,-460.0,0.00020273,2]
[372472109,1752658246030,-3790.78,0.00020273,2]
[372472111,1752658246040,-1773.18,0.00020273,2]
[372472113,1752658246050,-460.0,0.00020273,2]
[372472115,1752658246059,-460.0,0.00020273,2]
[372472117,1752658246068,-460.0,0.00020273,2]
[372472119,1752658246077,-881.94,0.00020273,2]
[372472121,1752658246087,-460.0,0.00020273,2]
[372472131,1752658246162,-460.0,0.00020273,2]
[372472133,1752658246179,-460.0,0.00020273,2]
[372472135,1752658246189,-460.0,0.00020273,2]
[372472137,1752658246200,-2784.38,0.00020273,2]
[372472139,1752658246209,-1682.41,0.00020273,2]
[372472140,1752658246219,-460.0,0.00020273,2]
[372472142,1752658246230,-1313.13,0.00020273,2]
[372472145,1752658246240,-487.35,0.00020273,2]
[372472147,1752658246249,-460.0,0.00020273,2]
[372472149,1752658246259,-460.0,0.00020273,2]
[372472150,1752658246269,-460.0,0.00020273,2]
[372472153,1752658246278,-460.0,0.00020273,2]
[372472155,1752658246289,-460.0,0.00020273,2]
[372472157,1752658246299,-460.0,0.00020273,2]
[372472159,1752658246308,-1503.77,0.00020273,2]
[372472160,1752658246318,-460.0,0.00020273,2]
[372472162,1752658246329,-460.0,0.00020273,2]
[372472164,1752658246338,-1556.28,0.00020273,2]
[372472166,1752658246348,-460.0,0.00020273,2]
[372472168,1752658246357,-158.42,0.00020273,2]
[372472170,1752658246367,-460.0,0.00020273,2]
[372472173,1752658246379,-460.0,0.00020273,2]
[372472175,1752658246389,-482.54,0.00020273,2]
[372472178,1752658246399,-460.0,0.00020273,2]
[372472180,1752658246408,-742.75,0.00020273,2]
[372472182,1752658246418,-2222.07,0.00020273,2]
[372472184,1752658246427,-460.0,0.00020273,2]
[372472186,1752658246437,-460.0,0.00020273,2]
[372472188,1752658246446,-460.0,0.00020273,2]
[372472190,1752658246455,-460.0,0.00020273,2]
[372472192,1752658246465,-460.0,0.00020273,2]
[372472194,1752658246475,-460.0,0.00020273,2]
[372472195,1752658246484,-1000.0,0.00020286,2]
[372472197,1752658246493,-1240.14837883,0.00020314,3]
[372472199,1752658246503,-2213.08,0.00020356,3]
[372472201,1752658246513,-1106.54,0.00020356,3]
[372472203,1752658246522,-553.26,0.00020356,3]
[372472205,1752658246532,-151.0,0.000204,4]
[372472207,1752658246541,-160.0,0.00020447,2]
[372472209,1752658246550,-151.0,0.000205,4]
[372472211,1752658246560,-1240.14837883,0.00020521,3]
[372472213,1752658246570,-160.0,0.00020538,2]
[372472215,1752658246579,-460.0,0.00020547,2]
[372472217,1752658246588,-460.0,0.00020547,2]
[372472219,1752658246597,-460.0,0.00020547,2]
[372472221,1752658246606,-460.0,0.00020547,2]
[372472222,1752658246616,-460.0,0.00020547,2]
[372472224,1752658246625,-460.0,0.00020547,2]
[372472226,1752658246634,-460.0,0.00020547,2]
[372472228,1752658246644,-1307.03,0.00020547,2]
[372472230,1752658246653,-460.0,0.00020547,2]
[372472232,1752658246662,-460.0,0.00020547,2]
[372472234,1752658246672,-460.0,0.00020547,2]
[372472236,1752658246681,-460.0,0.00020547,2]
[372472238,1752658246690,-460.0,0.00020547,2]
[372472240,1752658246699,-460.0,0.00020547,2]
[372472242,1752658246709,-481.17,0.00020547,2]
[372472244,1752658246720,-598.13432355,0.00020547,2]
[372472246,1752658246731,-460.0,0.00020547,2]
[372472248,1752658246740,-746.31,0.00020547,2]
[372472250,1752658246750,-1872.38,0.00020547,2]
[372472252,1752658246759,-831.68,0.00020547,2]
[372472254,1752658246768,-1118.23,0.00020547,2]
[372472256,1752658246779,-460.0,0.00020547,2]
[372472258,1752658246788,-460.0,0.00020547,2]
[372472259,1752658246798,-460.0,0.00020547,2]
[372472261,1752658246808,-469.33,0.00020547,2]
[372472263,1752658246818,-460.0,0.00020547,2]
[372472265,1752658246827,-460.0,0.00020547,2]
[372472267,1752658246837,-3790.78,0.00020547,2]
[372472269,1752658246846,-1773.18,0.00020547,2]
[372472271,1752658246856,-460.0,0.00020547,2]
[372472273,1752658246866,-460.0,0.00020547,2]
[372472275,1752658246875,-460.0,0.00020547,2]
[372472277,1752658246886,-881.94,0.00020547,2]
[372472279,1752658246895,-460.0,0.00020547,2]
[372472281,1752658246904,-460.0,0.00020547,2]
[372472283,1752658246913,-540.52492912,0.00020547,2]
[372472285,1752658246922,-460.0,0.00020547,2]
[372472287,1752658246931,-2784.38,0.00020547,2]
[372472289,1752658246940,-1682.41,0.00020547,2]
[372472291,1752658246950,-460.0,0.00020547,2]
[372472293,1752658246959,-1313.13,0.00020547,2]
[372472295,1752658246968,-487.35,0.00020547,2]
[372472296,1752658246978,-460.0,0.00020547,2]
[372472298,1752658246987,-460.0,0.00020547,2]
[372472300,1752658246997,-460.0,0.00020547,2]
[372472302,1752658247006,-460.0,0.00020547,2]
[372472304,1752658247015,-278.43283581,0.00020547,2]
[372472306,1752658247025,-1503.77,0.00020547,2]
[372472308,1752658247034,-460.0,0.00020547,2]
[372472310,1752658247043,-470.64156443,0.00020547,2]
[372472312,1752658247051,-1556.28,0.00020547,2]
[372472314,1752658247061,-316.4811283,0.00020547,2]
[372472316,1752658247070,-460.0,0.00020547,2]
[372472318,1752658247079,-460.0,0.00020547,2]
[372472320,1752658247088,-482.54,0.00020547,2]
[372472322,1752658247098,-460.0,0.00020547,2]
[372472324,1752658247107,-742.75,0.00020547,2]
[372472326,1752658247115,-2222.07,0.00020547,2]
[372472327,1752658247124,-460.0,0.00020547,2]
[372472329,1752658247134,-460.0,0.00020547,2]
[372472331,1752658247143,-460.0,0.00020547,2]
[372472333,1752658247152,-460.0,0.00020547,2]
[372472335,1752658247162,-460.0,0.00020547,2]
[372472337,1752658247171,-151.0,0.000206,3]
[372472339,1752658247181,-160.0,0.00020641,2]
[372472341,1752658247191,-160.0,0.00020642,2]
[372472343,1752658247201,-215.5496034,0.00020642,2]
[372472345,1752658247211,-160.0,0.00020642,2]
[372472347,1752658247220,-468.75,0.00020642,2]
[372472349,1752658247229,-160.0,0.00020642,2]
[372472351,1752658247239,-160.0,0.00020642,2]
[372472353,1752658247248,-160.0,0.00020642,2]
[372472355,1752658247257,-12605.49131908,0.00020642,2]
[372472357,1752658247266,-230.8109288,0.00020642,2]
[372472359,1752658247275,-520.85416667,0.00020642,2]
[372472361,1752658247285,-160.0,0.00020642,2]
[372472362,1752658247294,-420.0,0.00020701,2]
[372472364,1752658247304,-318.0,0.00020701,2]
[372472366,1752658247313,-376.0,0.00020701,2]
[372472368,1752658247322,-420.0,0.00020701,2]
[372472370,1752658247332,-1680.0,0.00020704,2]
[372472372,1752658247341,-1240.14837883,0.00020728,3]
[372472374,1752658247350,-6552.40895527,0.00020739,2]
[372472376,1752658247359,-151.0,0.000208,4]
[372472378,1752658247369,-1680.0,0.00020802,2]
[372472380,1752658247379,-520.21646966,0.00020814,2]
[372472382,1752658247388,-524.69984856,0.00020816,2]
[372472384,1752658247397,-471.21488851,0.00020821,2]
[372472386,1752658247406,-460.0,0.00020821,2]
[372472388,1752658247416,-379.49954319,0.00020821,2]
[372472389,1752658247425,-460.0,0.00020821,2]
[372472392,1752658247435,-460.0,0.00020821,2]
[372472393,1752658247445,-460.0,0.00020821,2]
[372472395,1752658247455,-1307.03,0.00020821,2]
[372472397,1752658247464,-460.0,0.00020821,2]
[372472399,1752658247473,-163.3061383,0.00020821,2]
[372472401,1752658247483,-460.0,0.00020821,2]
[372472403,1752658247492,-460.0,0.00020821,2]
[372472405,1752658247502,-460.0,0.00020821,2]
[372472407,1752658247511,-460.0,0.00020821,2]
[372472409,1752658247520,-460.0,0.00020821,2]
[372472411,1752658247530,-746.31,0.00020821,2]
[372472413,1752658247539,-1872.38,0.00020821,2]
[372472415,1752658247548,-831.68,0.00020821,2]
[372472416,1752658247558,-1118.23,0.00020821,2]
[372472418,1752658247567,-460.0,0.00020821,2]
[372472420,1752658247576,-460.0,0.00020821,2]
[372472422,1752658247585,-460.0,0.00020821,2]
[372472424,1752658247594,-469.33,0.00020821,2]
[372472426,1752658247604,-460.0,0.00020821,2]
[372472428,1752658247613,-460.0,0.00020821,2]
[372472430,1752658247623,-3790.78,0.00020821,2]
[372472432,1752658247632,-1773.18,0.00020821,2]
[372472434,1752658247642,-460.0,0.00020821,2]
[372472436,1752658247651,-460.0,0.00020821,2]
[372472438,1752658247660,-599.38,0.00020821,2]
[372472440,1752658247669,-881.94,0.00020821,2]
[372472442,1752658247678,-460.0,0.00020821,2]
[372472444,1752658247689,-460.0,0.00020821,2]
[372472446,1752658247698,-460.0,0.00020821,2]
[372472447,1752658247708,-2784.38,0.00020821,2]
[372472449,1752658247726,-1682.41,0.00020821,2]
[372472451,1752658247746,-460.0,0.00020821,2]
[372472453,1752658247757,-1313.13,0.00020821,2]
[372472455,1752658247767,-487.35,0.00020821,2]
[372472457,1752658247776,-460.0,0.00020821,2]
[372472467,1752658247860,-460.0,0.00020821,2]
[372472469,1752658247871,-460.0,0.00020821,2]
[372472471,1752658247880,-460.0,0.00020821,2]
[372472473,1752658247890,-1503.77,0.00020821,2]
[372472475,1752658247899,-460.0,0.00020821,2]
[372472477,1752658247909,-1556.28,0.00020821,2]
[372472479,1752658247919,-460.0,0.00020821,2]
[372472480,1752658247928,-460.0,0.00020821,2]
[372472482,1752658247937,-460.0,0.00020821,2]
[372472484,1752658247946,-482.54,0.00020821,2]
[372472486,1752658247956,-742.75,0.00020821,2]
[372472488,1752658247966,-2222.07,0.00020821,2]
[372472490,1752658247975,-460.0,0.00020821,2]
[372472492,1752658247985,-460.0,0.00020821,2]
[372472494,1752658247994,-460.0,0.00020821,2]
[372472496,1752658248004,-460.0,0.00020821,2]
[372472498,1752658248013,-460.0,0.00020821,2]
[372472500,1752658248022,-1500.0,0.00020834,2]
[372472502,1752658248032,-249.84316173,0.000209,2]
[372472504,1752658248042,-500.0,0.00020929,2]
[372472505,1752658248052,-1240.14837883,0.00020934,4]
[372472507,1752658248062,-260.0,0.00020995,2]
[372472509,1752658248072,-1193.20016469,0.00021,2]
[372472511,1752658248081,-151.0,0.00021,4]
[372472513,1752658248091,-814.04,0.00021,2]
[372472515,1752658248101,-10000.0,0.00021,5]
[372472516,1752658248111,-3920.39356113,0.00021,2]
[372472518,1752658248120,-269.95567869,0.00021,2]
[372472520,1752658248130,-169.10995551,0.00021,10]
[372472522,1752658248140,-35000.0,0.00021,2]
[372472524,1752658248150,-184792.66293396,0.00021,3]
[372472526,1752658248160,-780.0,0.00021,2]
[372472528,1752658248169,-151.0,0.00021,2]
[372472530,1752658248179,-883.375,0.00021033,2]
[372472532,1752658248188,-178.376,0.00021033,2]
[372472534,1752658248198,-1229.58696646,0.00021094,2]
[372472536,1752658248208,-460.0,0.00021095,2]
[372472538,1752658248217,-370.59891849,0.00021095,2]
[372472540,1752658248227,-460.0,0.00021095,2]
[372472542,1752658248238,-460.0,0.00021095,2]
[372472544,1752658248247,-1307.03,0.00021095,2]
[372472546,1752658248257,-460.0,0.00021095,2]
[372472548,1752658248266,-460.0,0.00021095,2]
[372472550,1752658248275,-460.0,0.00021095,2]
[372472551,1752658248285,-460.0,0.00021095,2]
[372472553,1752658248294,-460.0,0.00021095,2]
[372472555,1752658248305,-460.0,0.00021095,2]
[372472557,1752658248313,-746.31,0.00021095,2]
[372472559,1752658248323,-1872.38,0.00021095,2]
[372472561,1752658248333,-831.68,0.00021095,2]
[372472563,1752658248342,-1118.23,0.00021095,2]
[372472565,1752658248351,-460.0,0.00021095,2]
[372472567,1752658248361,-433.74,0.00021095,2]
[372472569,1752658248370,-460.0,0.00021095,2]
[372472571,1752658248380,-460.0,0.00021095,2]
[372472573,1752658248389,-469.33,0.00021095,2]
[372472575,1752658248399,-460.0,0.00021095,2]
[372472577,1752658248409,-3790.78,0.00021095,2]
[372472579,1752658248418,-1773.18,0.00021095,2]
[372472581,1752658248427,-460.0,0.00021095,2]
[372472583,1752658248437,-460.0,0.00021095,2]
[372472585,1752658248448,-881.94,0.00021095,2]
[372472587,1752658248456,-460.0,0.00021095,2]
[372472588,1752658248466,-460.0,0.00021095,2]
[372472590,1752658248475,-2784.38,0.00021095,2]
[372472592,1752658248484,-1682.41,0.00021095,2]
[372472594,1752658248494,-460.0,0.00021095,2]
[372472596,1752658248504,-1313.13,0.00021095,2]
[372472598,1752658248514,-487.35,0.00021095,2]
[372472600,1752658248523,-460.0,0.00021095,2]
[372472602,1752658248533,-460.0,0.00021095,2]
[372472604,1752658248542,-460.0,0.00021095,2]
[372472606,1752658248551,-460.0,0.00021095,2]
[372472608,1752658248561,-1503.77,0.00021095,2]
[372472609,1752658248570,-460.0,0.00021095,2]
[372472611,1752658248579,-1556.28,0.00021095,2]
[372472613,1752658248589,-460.0,0.00021095,2]
[372472615,1752658248598,-460.0,0.00021095,2]
[372472617,1752658248608,-460.0,0.00021095,2]
[372472619,1752658248618,-482.54,0.00021095,2]
[372472621,1752658248627,-742.75,0.00021095,2]
[372472623,1752658248637,-2222.07,0.00021095,2]
[372472625,1752658248646,-460.0,0.00021095,2]
[372472626,1752658248655,-460.0,0.00021095,2]
[372472627,1752658248666,-150.69,0.00021095,2]
[372472628,1752658248676,-460.0,0.00021095,2]
[372472629,1752658248685,-460.0,0.00021095,2]
[372472630,1752658248696,-151.0,0.000211,3]
[372472631,1752658248710,-500.0,0.00021124,2]
[372472632,1752658248728,-500.0,0.00021124,2]
[372472633,1752658248750,-500.0,0.00021124,2]
[372472634,1752658248771,-501.58314376,0.00021124,2]
[372472635,1752658248781,-502.33311944,0.00021124,2]
[372472636,1752658248792,-500.0,0.00021124,2]
[372472637,1752658248802,-1240.14837883,0.00021141,4]
[372472638,1752658248811,-500.0,0.00021148,2]
[372472639,1752658248821,-21685.38,0.000213,2]
[372472640,1752658248831,-503.33669226,0.000213,2]
[372472641,1752658248840,-1240.14837883,0.00021348,5]
[372472642,1752658248850,-460.0,0.00021369,2]
[372472643,1752658248859,-460.0,0.00021369,2]
[372472644,1752658248869,-460.0,0.00021369,2]
[372472645,1752658248879,-1307.03,0.00021369,2]
[372472646,1752658248889,-460.0,0.00021369,2]
[372472647,1752658248898,-460.0,0.00021369,2]
[372472648,1752658248907,-460.0,0.00021369,2]
[372472650,1752658248916,-460.0,0.00021369,2]
[372472652,1752658248926,-314.10380105,0.00021369,2]
[372472654,1752658248935,-460.0,0.00021369,2]
[372472656,1752658248946,-746.31,0.00021369,2]
[372472658,1752658248955,-1872.38,0.00021369,2]
[372472660,1752658248964,-831.68,0.00021369,2]
[372472662,1752658248973,-1118.23,0.00021369,2]
[372472663,1752658248983,-460.0,0.00021369,2]
[372472665,1752658248992,-424.42212522,0.00021369,2]
[372472668,1752658249006,-461.17647888,0.00021369,2]
[372472670,1752658249016,-469.33,0.00021369,2]
[372472672,1752658249025,-460.0,0.00021369,2]
[372472674,1752658249035,-3790.78,0.00021369,2]
[372472676,1752658249044,-1773.18,0.00021369,2]
[372472677,1752658249054,-460.0,0.00021369,2]
[372472679,1752658249063,-460.0,0.00021369,2]
[372472682,1752658249073,-881.94,0.00021369,2]
[372472684,1752658249083,-460.0,0.00021369,2]
[372472685,1752658249092,-460.0,0.00021369,2]
[372472687,1752658249102,-2784.38,0.00021369,2]
[372472689,1752658249112,-1682.41,0.00021369,2]
[372472692,1752658249122,-460.0,0.00021369,2]
[372472694,1752658249132,-1313.13,0.00021369,2]
[372472695,1752658249141,-487.35,0.00021369,2]
[372472698,1752658249153,-460.0,0.00021369,2]
[372472700,1752658249163,-460.0,0.00021369,2]
[372472702,1752658249173,-460.0,0.00021369,2]
[372472704,1752658249182,-460.0,0.00021369,2]
[372472706,1752658249191,-1503.77,0.00021369,2]
[372472707,1752658249200,-460.0,0.00021369,2]
[372472709,1752658249209,-1556.28,0.00021369,2]
[372472711,1752658249219,-460.0,0.00021369,2]
[372472713,1752658249228,-482.54,0.00021369,2]
[372472715,1752658249238,-517.84361329,0.00021369,2]
[372472717,1752658249247,-742.75,0.00021369,2]
[372472719,1752658249257,-2222.07,0.00021369,2]
[372472721,1752658249267,-460.0,0.00021369,2]
[372472723,1752658249276,-460.0,0.00021369,2]
[372472725,1752658249286,-460.0,0.00021369,2]
[372472727,1752658249295,-460.0,0.00021369,2]
[372472729,1752658249305,-293.70857859,0.00021382,2]
[372472731,1752658249315,-500.0,0.00021454,2]
[372472733,1752658249324,-503.18757773,0.00021477,2]
[372472735,1752658249334,-151.0,0.000215,4]
[372472737,1752658249344,-360.0,0.00021543,2]
[372472739,1752658249354,-1240.14837883,0.00021555,5]